fUSD/lending_fUSD_20240515
["ID","MTS","AMOUNT","RATE_DAILY","PERIOD"]
[327059792,1715766634708,-1000.0,0.0001108,2]
[327059793,1715766634720,-228056.9425,0.0001108,2]
[327059794,1715766634730,-150.0,0.000111,2]
[327059795,1715766634740,-150.0,0.000111,2]
[327059796,1715766634751,-162.59,0.000111,2]
[327059797,1715766634760,-351.56,0.000111,2]
[327059798,1715766634770,-420.44,0.000111,2]
[327059799,1715766634780,-150.0,0.000111,2]
[327059800,1715766634790,-150.0,0.000111,2]
[327059801,1715766634799,-150.0,0.000111,2]
[327059802,1715766634809,-351.56,0.000111,2]
[327059803,1715766634819,-150.0,0.000111,2]
[327059804,1715766634828,-420.44,0.000111,2]
[327059805,1715766634841,-150.0,0.000111,2]
[327059806,1715766634851,-419.32,0.000111,2]
[327059807,1715766634860,-264.78,0.000111,2]
[327059808,1715766634871,-150.0,0.000111,2]
[327059809,1715766634880,-520.0,0.00011115,2]
[327059810,1715766634890,-3000.0,0.000112,2]
[327059811,1715766634902,-150.0,0.00011233,2]
[327059812,1715766634912,-150.0,0.00011233,2]
[327059813,1715766634921,-548.53577545,0.00011311,2]
[327059814,1715766634930,-180.10595824,0.00011311,2]
[327059815,1715766634940,-409.53880805,0.00011311,2]
[327059816,1715766634950,-298.75742106,0.00011311,2]
[327059817,1715766634959,-53878.21922,0.00011318,2]
[327059818,1715766634968,-420.44,0.000114,2]
[327059819,1715766634980,-150.0,0.000114,2]
[327059820,1715766634989,-163.35,0.000114,2]
[327059821,1715766634998,-351.56,0.000114,2]
[327059822,1715766635008,-150.0,0.000114,2]
[327059823,1715766635018,-150.0,0.000114,2]
[327059824,1715766635027,-150.0,0.000114,2]
[327059825,1715766635036,-480.0,0.0001152,2]
[327059826,1715766635046,-869.03,0.00011534,2]
[327059827,1715766635056,-869.03,0.00011534,2]
[327059828,1715766635065,-869.03,0.00011534,2]
[327059829,1715766635074,-379.2,0.000116,2]
[327059830,1715766635084,-150.0,0.000116,2]
[327059831,1715766635093,-172.58,0.000116,2]
[327059832,1715766635103,-150.0,0.000116,2]
[327059833,1715766635114,-150.0,0.000116,2]
[327059834,1715766635123,-150.0,0.000116,2]
[327059835,1715766635133,-351.56,0.000116,2]
[327059836,1715766635143,-163.35,0.000116,2]
[327059837,1715766635152,-200.0,0.00011628,2]
[327059838,1715766635162,-150.0,0.00011671,2]
[327059839,1715766635172,-352.23,0.00011671,2]
[327059840,1715766635181,-1052.33,0.00011671,2]
[327059841,1715766635191,-326.62,0.00011671,2]
[327059842,1715766635200,-1430.5439655,0.00011723,2]
[327059843,1715766635209,-155.25632263,0.00011724,2]
[327059844,1715766635218,-1213.37270844,0.00011724,2]
[327059845,1715766635227,-155.87069556,0.00011724,2]
[327059846,1715766635237,-221.81256849,0.00011724,2]
[327059847,1715766635246,-217.54580362,0.00011724,2]
[327059848,1715766635255,-165.91738265,0.00011724,2]
[327059849,1715766635265,-192.61968187,0.00011724,2]
[327059850,1715766635274,-502.61297714,0.00011724,2]
[327059851,1715766635283,-213.07843743,0.00011724,2]
[327059852,1715766635294,-364.76433642,0.00011724,2]
[327059853,1715766635303,-163.09696048,0.00011725,2]
[327059854,1715766635313,-307.55,0.00011725,2]
[327059855,1715766635323,-276.75517959,0.00011725,2]
[327059856,1715766635333,-187038.84575557,0.00011725,2]
[327059857,1715766635342,-202.14,0.00011754,2]
[327059858,1715766635351,-811.73,0.0001178,2]
[327059859,1715766635361,-811.73,0.0001178,2]
[327059860,1715766635373,-503.96,0.0001178,2]
[327059861,1715766635383,-500.0,0.0001178,2]
[327059862,1715766635394,-503.96,0.0001178,2]
[327059863,1715766635404,-500.0,0.0001178,2]
[327059864,1715766635415,-500.0,0.0001178,2]
[327059865,1715766635424,-500.0,0.0001178,2]
[327059866,1715766635433,-274.91,0.0001178,2]
[327059867,1715766635443,-500.0,0.0001178,2]
[327059868,1715766635452,-582.56,0.0001178,2]
[327059869,1715766635461,-500.0,0.0001178,2]
[327059870,1715766635471,-433.19616287,0.0001178,2]
[327059871,1715766635480,-558.66,0.0001178,2]
[327059872,1715766635489,-500.0,0.0001178,2]
[327059873,1715766635498,-500.0,0.0001178,2]
[327059874,1715766635507,-529.77,0.0001178,2]
[327059875,1715766635517,-500.0,0.0001178,2]
[327059876,1715766635528,-638.97580715,0.0001178,2]
[327059877,1715766635538,-500.0,0.0001178,2]
[327059878,1715766635547,-500.0,0.0001178,2]
[327059879,1715766635557,-500.0,0.0001178,2]
[327059880,1715766635568,-500.0,0.0001178,2]
[327059881,1715766635578,-500.0,0.0001178,2]
[327059882,1715766635587,-500.0,0.0001178,2]
[327059883,1715766635596,-500.0,0.0001178,2]
[327059884,1715766635605,-500.0,0.0001178,2]
[327059885,1715766635615,-521.00104193,0.0001178,2]
[327059886,1715766635625,-500.0,0.0001178,2]
[327059887,1715766635634,-500.0,0.0001178,2]
[327059888,1715766635644,-500.0,0.0001178,2]
[327059889,1715766635653,-268.06214595,0.0001178,2]
[327059890,1715766635663,-511.67739964,0.0001178,2]
[327059891,1715766635672,-500.0,0.0001178,2]
[327059892,1715766635681,-208.34,0.0001178,2]
[327059893,1715766635690,-500.0,0.0001178,2]
[327059894,1715766635699,-500.0,0.0001178,2]
[327059895,1715766635709,-500.0,0.0001178,2]
[327059896,1715766635717,-595.9862605,0.0001178,2]
[327059897,1715766635727,-517.9441158,0.0001178,2]
[327059898,1715766635736,-500.0,0.0001178,2]
[327059899,1715766635745,-500.0,0.0001178,2]
[327059900,1715766635755,-500.0,0.0001178,2]
[327059901,1715766635764,-500.0,0.0001178,2]
[327059902,1715766635774,-514.36597797,0.0001178,2]
[327059903,1715766635783,-528.52663239,0.0001178,2]
[327059904,1715766635793,-588.88835875,0.0001178,2]
[327059905,1715766635802,-500.0,0.0001178,2]
[327059906,1715766635811,-500.0,0.0001178,2]
[327059907,1715766635821,-500.0,0.0001178,2]
[327059908,1715766635830,-500.0,0.0001178,2]
[327059909,1715766635841,-500.0,0.0001178,2]
[327059910,1715766635850,-509.35,0.0001178,2]
[327059911,1715766635859,-500.0,0.0001178,2]
[327059912,1715766635871,-500.0,0.0001178,2]
[327059913,1715766635880,-316.1,0.0001178,2]
[327059914,1715766635889,-500.0,0.0001178,2]
[327059915,1715766635899,-500.0,0.0001178,2]
[327059916,1715766635910,-500.0,0.0001178,2]
[327059917,1715766635919,-500.0,0.0001178,2]
[327059918,1715766635929,-500.0,0.0001178,2]
[327059919,1715766635939,-500.0,0.0001178,2]
[327059920,1715766635949,-500.0,0.0001178,2]
[327059921,1715766635958,-500.0,0.0001178,2]
[327059922,1715766635968,-500.0,0.0001178,2]
[327059923,1715766635977,-500.0,0.0001178,2]
[327059924,1715766635991,-500.0,0.0001178,2]
[327059925,1715766636001,-500.0,0.0001178,2]
[327059926,1715766636010,-500.0,0.0001178,2]
[327059927,1715766636020,-500.0,0.0001178,2]
[327059928,1715766636030,-500.0,0.0001178,2]
[327059929,1715766636039,-300.26,0.0001178,2]
[327059930,1715766636049,-500.0,0.0001178,2]
[327059931,1715766636059,-500.0,0.0001178,2]
[327059932,1715766636068,-500.0,0.0001178,2]
[327059933,1715766636078,-500.0,0.0001178,2]
[327059934,1715766636087,-500.0,0.0001178,2]
[327059935,1715766636096,-500.0,0.0001178,2]
[327059936,1715766636106,-500.0,0.0001178,2]
[327059937,1715766636116,-516.9234155,0.0001178,2]
[327059938,1715766636126,-503.66,0.0001178,2]
[327059939,1715766636135,-500.0,0.0001178,2]
[327059940,1715766636144,-611.17,0.0001178,2]
[327059941,1715766636154,-519.73,0.0001178,2]
[327059942,1715766636164,-500.0,0.0001178,2]
[327059943,1715766636173,-500.0,0.0001178,2]
[327059944,1715766636183,-606.46,0.0001178,2]
[327059945,1715766636192,-500.0,0.0001178,2]
[327059946,1715766636201,-500.0,0.0001178,2]
[327059947,1715766636211,-500.0,0.0001178,2]
[327059948,1715766636220,-512.88177987,0.0001178,2]
[327059949,1715766636229,-500.0,0.0001178,2]
[327059950,1715766636238,-500.0,0.0001178,2]
[327059951,1715766636247,-400.48,0.0001178,2]
[327059952,1715766636256,-175.38916533,0.0001178,2]
[327059953,1715766636265,-500.0,0.0001178,2]
[327059954,1715766636275,-561.1572211,0.0001178,2]
[327059955,1715766636284,-500.0,0.0001178,2]
[327059956,1715766636293,-500.0,0.0001178,2]
[327059957,1715766636302,-500.0,0.0001178,2]
[327059958,1715766636311,-500.0,0.0001178,2]
[327059959,1715766636322,-278.15935528,0.0001178,2]
[327059960,1715766636332,-500.0,0.0001178,2]
[327059961,1715766636342,-500.0,0.0001178,2]
[327059962,1715766636352,-500.0,0.0001178,2]
[327059963,1715766636361,-500.0,0.0001178,2]
[327059964,1715766636373,-493.19117692,0.0001178,2]
[327059965,1715766636382,-500.0,0.0001178,2]
[327059966,1715766636391,-500.0,0.0001178,2]
[327059967,1715766636401,-500.0,0.0001178,2]
[327059968,1715766636410,-485.49,0.0001178,2]
[327059969,1715766636419,-500.0,0.0001178,2]
[327059970,1715766636429,-504.78717411,0.0001178,2]
[327059971,1715766636438,-500.0,0.0001178,2]
[327059972,1715766636447,-500.0,0.0001178,2]
[327059973,1715766636456,-500.0,0.0001178,2]
[327059974,1715766636466,-510.72742655,0.0001178,2]
[327059975,1715766636475,-500.0,0.0001178,2]
[327059976,1715766636486,-500.0,0.0001178,2]
[327059977,1715766636495,-500.0,0.0001178,2]
[327059978,1715766636505,-500.0,0.0001178,2]
[327059979,1715766636514,-500.0,0.0001178,2]
[327059980,1715766636523,-309.53407008,0.0001178,2]
[327059981,1715766636532,-500.0,0.0001178,2]
[327059982,1715766636542,-500.0,0.0001178,2]
[327059983,1715766636551,-500.0,0.0001178,2]
[327059984,1715766636560,-500.0,0.0001178,2]
[327059985,1715766636570,-500.0,0.0001178,2]
[327059986,1715766636579,-500.0,0.0001178,2]
[327059987,1715766636588,-548.83288313,0.0001178,2]
[327059988,1715766636597,-500.0,0.0001178,2]
[327059989,1715766636607,-476.31276397,0.0001178,2]
[327059990,1715766636619,-500.0,0.0001178,2]
[327059991,1715766636628,-500.0,0.0001178,2]
[327059992,1715766636637,-500.0,0.0001178,2]
[327059993,1715766636646,-500.0,0.0001178,2]
[327059994,1715766636656,-500.0,0.0001178,2]
[327059995,1715766636665,-513.1434063,0.0001178,2]
[327059996,1715766636674,-517.42277429,0.0001178,2]
[327059997,1715766636683,-500.0,0.0001178,2]
[327059998,1715766636692,-1550.01,0.0001178,2]
[327059999,1715766636701,-513.01683737,0.0001178,2]
[327060000,1715766636710,-1550.01,0.0001178,2]
[327060001,1715766636719,-500.0,0.0001178,2]
[327060002,1715766636728,-500.0,0.0001178,2]
[327060003,1715766636738,-500.0,0.0001178,2]
[327060004,1715766636747,-500.0,0.0001178,2]
[327060005,1715766636756,-642.58,0.0001178,2]
[327060006,1715766636765,-430.48,0.0001178,2]
[327060007,1715766636774,-510.59264857,0.0001178,2]
[327060008,1715766636783,-500.0,0.0001178,2]
[327060009,1715766636793,-2036.52,0.0001178,2]
[327060010,1715766636802,-563.81,0.0001178,2]
[327060011,1715766636811,-500.0,0.0001178,2]
[327060012,1715766636819,-540.57504199,0.0001178,2]
[327060013,1715766636829,-563.81,0.0001178,2]
[327060014,1715766636839,-2036.52,0.0001178,2]
[327060015,1715766636848,-500.0,0.0001178,2]
[327060016,1715766636858,-2662.89,0.0001178,2]
[327060017,1715766636867,-2036.52,0.0001178,2]
[327060018,1715766636876,-500.0,0.0001178,2]
[327060019,1715766636885,-2662.89,0.0001178,2]
[327060020,1715766636895,-2036.52,0.0001178,2]
[327060021,1715766636910,-2036.52,0.0001178,2]
[327060022,1715766636919,-2036.52,0.0001178,2]
[327060023,1715766636928,-2036.52,0.0001178,2]
[327060024,1715766636938,-2036.52,0.0001178,2]
[327060025,1715766636950,-500.0,0.0001178,2]
[327060026,1715766636959,-500.0,0.0001178,2]
[327060027,1715766636969,-515.73910858,0.0001178,2]
[327060028,1715766636982,-2036.52,0.0001178,2]
[327060029,1715766636991,-528.6865639,0.0001178,2]
[327060030,1715766637001,-2036.52,0.0001178,2]
[327060031,1715766637011,-500.0,0.0001178,2]
[327060032,1715766637021,-2036.52,0.0001178,2]
[327060033,1715766637030,-2036.52,0.0001178,2]
[327060034,1715766637039,-500.0,0.0001178,2]
[327060035,1715766637049,-2036.52,0.0001178,2]
[327060036,1715766637058,-500.0,0.0001178,2]
[327060037,1715766637068,-2036.52,0.0001178,2]
[327060038,1715766637077,-2036.52,0.0001178,2]
[327060039,1715766637086,-2036.52,0.0001178,2]
[327060040,1715766637096,-2036.52,0.0001178,2]
[327060041,1715766637106,-500.0,0.0001178,2]
[327060042,1715766637116,-515.75867925,0.0001178,2]
[327060043,1715766637125,-2036.52,0.0001178,2]
[327060044,1715766637135,-500.0,0.0001178,2]
[327060045,1715766637144,-2036.52,0.0001178,2]
[327060046,1715766637154,-500.0,0.0001178,2]
[327060047,1715766637164,-2036.52,0.0001178,2]
[327060048,1715766637173,-525.17,0.0001178,2]
[327060049,1715766637191,-2036.52,0.0001178,2]
[327060050,1715766637205,-2036.52,0.0001178,2]
[327060051,1715766637215,-2036.52,0.0001178,2]
[327060052,1715766637224,-2036.65913768,0.0001178,2]
[327060053,1715766637235,-500.0,0.0001178,2]
[327060054,1715766637245,-500.0,0.0001178,2]
[327060055,1715766637255,-500.0,0.0001178,2]
[327060056,1715766637265,-511.47761669,0.0001178,2]
[327060057,1715766637275,-558.41801938,0.0001178,2]
[327060058,1715766637285,-500.0,0.0001178,2]
[327060059,1715766637295,-569.21260238,0.0001178,2]
[327060060,1715766637306,-500.0,0.0001178,2]
[327060061,1715766637316,-516.11993786,0.0001178,2]
[327060062,1715766637326,-634.78,0.0001178,2]
[327060063,1715766637336,-810.7,0.0001178,2]
[327060064,1715766637346,-810.7,0.0001178,2]
[327060065,1715766637356,-540.45554108,0.0001178,2]
[327060066,1715766637367,-500.0,0.0001178,2]
[327060067,1715766637377,-567.24538575,0.0001178,2]
[327060068,1715766637387,-500.0,0.0001178,2]
[327060069,1715766637397,-501.35,0.0001178,2]
[327060070,1715766637408,-501.35,0.0001178,2]
[327060071,1715766637418,-501.35,0.0001178,2]
[327060072,1715766637428,-500.0,0.0001178,2]
[327060073,1715766637438,-501.35,0.0001178,2]
[327060074,1715766637448,-500.0,0.0001178,2]
[327060075,1715766637458,-501.35,0.0001178,2]
[327060076,1715766637468,-500.0,0.0001178,2]
[327060077,1715766637478,-501.35,0.0001178,2]
[327060078,1715766637487,-500.0,0.0001178,2]
[327060079,1715766637497,-500.0,0.0001178,2]
[327060080,1715766637507,-501.35,0.0001178,2]
[327060081,1715766637517,-501.35,0.0001178,2]
[327060082,1715766637526,-501.35,0.0001178,2]
[327060083,1715766637536,-501.35,0.0001178,2]
[327060084,1715766637546,-508.15363179,0.0001178,2]
[327060085,1715766637556,-501.35,0.0001178,2]
[327060086,1715766637565,-500.0,0.0001178,2]
[327060087,1715766637576,-500.0,0.0001178,2]
[327060088,1715766637586,-500.0,0.0001178,2]
[327060089,1715766637595,-500.0,0.0001178,2]
[327060090,1715766637605,-500.0,0.0001178,2]
[327060091,1715766637615,-500.0,0.0001178,2]
[327060092,1715766637626,-515.73041646,0.0001178,2]
[327060093,1715766637635,-501.35,0.0001178,2]
[327060094,1715766637644,-501.35,0.0001178,2]
[327060095,1715766637653,-501.35,0.0001178,2]
[327060096,1715766637663,-500.0,0.0001178,2]
[327060097,1715766637672,-501.35,0.0001178,2]
[327060098,1715766637682,-501.35,0.0001178,2]
[327060099,1715766637692,-501.35,0.0001178,2]
[327060100,1715766637701,-500.0,0.0001178,2]
[327060101,1715766637711,-501.35,0.0001178,2]
[327060102,1715766637720,-182.2176817,0.0001178,2]
[327060104,1715766637730,-500.0,0.0001178,2]
[327060106,1715766637739,-501.35,0.0001178,2]
[327060107,1715766637749,-500.0,0.0001178,2]
[327060108,1715766637758,-500.0,0.0001178,2]
[327060109,1715766637768,-501.35,0.0001178,2]
[327060110,1715766637778,-500.0,0.0001178,2]
[327060111,1715766637788,-501.35,0.0001178,2]
[327060112,1715766637798,-501.35,0.0001178,2]
[327060113,1715766637809,-501.35,0.0001178,2]
[327060114,1715766637823,-500.0,0.0001178,2]
[327060115,1715766637833,-501.58513952,0.0001178,2]
[327060116,1715766637844,-500.0,0.0001178,2]
[327060117,1715766637854,-500.0,0.0001178,2]
[327060118,1715766637864,-500.0,0.0001178,2]
[327060119,1715766637876,-597.69486043,0.0001178,2]
[327060120,1715766637886,-500.0,0.0001178,2]
[327060121,1715766637896,-191.68,0.0001178,2]
[327060122,1715766638113,-500.0,0.0001178,2]
[327060123,1715766638124,-500.0,0.0001178,2]
[327060124,1715766638134,-511.79938976,0.0001178,2]
[327060125,1715766638143,-500.0,0.0001178,2]
[327060126,1715766638153,-500.0,0.0001178,2]
[327060127,1715766638162,-639.43561601,0.0001178,2]
[327060128,1715766638172,-337.30716425,0.0001178,2]
[327060129,1715766638182,-500.0,0.0001178,2]
[327060130,1715766638192,-429.66101887,0.0001178,2]
[327060131,1715766638202,-161.16878137,0.0001178,2]
[327060132,1715766638212,-519.09554867,0.0001178,2]
[327060133,1715766638222,-500.0,0.0001178,2]
[327060134,1715766638231,-597.83827521,0.0001178,2]
[327060135,1715766638241,-500.0,0.0001178,2]
[327060136,1715766638250,-311.19,0.0001178,2]
[327060137,1715766638259,-500.0,0.0001178,2]
[327060138,1715766638269,-500.0,0.0001178,2]
[327060139,1715766638278,-232.58735664,0.0001178,2]
[327060140,1715766638287,-500.0,0.0001178,2]
[327060141,1715766638296,-500.0,0.0001178,2]
[327060142,1715766638306,-552.44417823,0.0001178,2]
[327060143,1715766638315,-235.00102453,0.0001178,2]
[327060144,1715766638324,-500.0,0.0001178,2]
[327060145,1715766638334,-2185.87,0.0001178,2]
[327060146,1715766638343,-328.83,0.0001178,2]
[327060147,1715766638352,-2185.87,0.0001178,2]
[327060148,1715766638362,-500.0,0.0001178,2]
[327060149,1715766638372,-2185.87,0.0001178,2]
[327060150,1715766638382,-500.0,0.0001178,2]
[327060151,1715766638391,-2185.87,0.0001178,2]
[327060152,1715766638401,-500.0,0.0001178,2]
[327060153,1715766638410,-500.0,0.0001178,2]
[327060154,1715766638419,-2185.87,0.0001178,2]
[327060155,1715766638429,-2185.87,0.0001178,2]
[327060156,1715766638438,-2185.87,0.0001178,2]
[327060157,1715766638448,-2185.87,0.0001178,2]
[327060158,1715766638457,-2185.87,0.0001178,2]
[327060159,1715766638467,-2185.87,0.0001178,2]
[327060160,1715766638476,-758.61399267,0.0001178,2]
[327060161,1715766638499,-1427.25600733,0.0001178,2]
[327060162,1715766638510,-2185.87,0.0001178,2]
[327060163,1715766638521,-523.35300941,0.0001178,2]
[327060164,1715766638533,-500.0,0.0001178,2]
[327060165,1715766638543,-1324.2656157,0.0001178,2]
[327060166,1715766638554,-500.0,0.0001178,2]
[327060192,1715766639123,-314.06,0.0001178,2]
[327060193,1715766639135,-47.5443843,0.0001178,2]
[327060194,1715766639145,-204.14384637,0.0001178,2]
[327060195,1715766639157,-295.85615363,0.0001178,2]
[327060196,1715766639167,-516.72826126,0.0001178,2]
[327060197,1715766639176,-2185.87,0.0001178,2]
[327060198,1715766639186,-520.33619845,0.0001178,2]
[327060199,1715766639204,-2185.87,0.0001178,2]
[327060200,1715766639217,-2185.87,0.0001178,2]
[327060201,1715766639226,-2185.87,0.0001178,2]
[327060202,1715766639236,-2185.87,0.0001178,2]
[327060203,1715766639246,-2185.87,0.0001178,2]
[327060204,1715766639256,-2185.87,0.0001178,2]
[327060205,1715766639266,-500.0,0.0001178,2]
[327060206,1715766639276,-510.9724832,0.0001178,2]
[327060207,1715766639286,-2185.87,0.0001178,2]
[327060208,1715766639297,-2185.87,0.0001178,2]
[327060209,1715766639307,-451.17654097,0.0001178,2]
[327060210,1715766639317,-2185.87,0.0001178,2]
[327060211,1715766639327,-2186.09,0.0001178,2]
[327060212,1715766639338,-500.0,0.0001178,2]
[327060213,1715766639347,-500.0,0.0001178,2]
[327060214,1715766639357,-578.2656324,0.0001178,2]
[327060215,1715766639367,-500.0,0.0001178,2]
[327060216,1715766639381,-500.0,0.0001178,2]
[327060217,1715766639392,-500.0,0.0001178,2]
[327060218,1715766639402,-574.69911448,0.0001178,2]
[327060219,1715766639412,-266.66930528,0.0001178,2]
[327060220,1715766639422,-622.45425152,0.0001178,2]
[327060221,1715766639432,-500.0,0.0001178,2]
[327060222,1715766639442,-631.56121939,0.0001178,2]
[327060223,1715766639451,-500.0,0.0001178,2]
[327060224,1715766639461,-616.62653068,0.0001178,2]
[327060225,1715766639470,-500.0,0.0001178,2]
[327060226,1715766639480,-500.0,0.0001178,2]
[327060227,1715766639490,-530.30456159,0.0001178,2]
[327060228,1715766639500,-500.0,0.0001178,2]
[327060230,1715766639510,-2196.05,0.0001178,2]
[327060232,1715766639520,-500.0,0.0001178,2]
[327060234,1715766639530,-176.27212589,0.0001178,2]
[327060236,1715766639544,-2019.77787411,0.0001178,2]
[327060238,1715766639554,-500.0,0.0001178,2]
[327060240,1715766639564,-515.73653294,0.0001178,2]
[327060242,1715766639574,-500.0,0.0001178,2]
[327060244,1715766639583,-500.0,0.0001178,2]
[327060246,1715766639593,-500.0,0.0001178,2]
[327060248,1715766639603,-500.0,0.0001178,2]
[327060249,1715766639613,-156.51627843,0.0001178,2]
[327060250,1715766639625,-500.0,0.0001178,2]
[327060251,1715766639635,-500.0,0.0001178,2]
[327060252,1715766639644,-608.16,0.0001178,2]
[327060253,1715766639654,-500.0,0.0001178,2]
[327060254,1715766639664,-239.64367018,0.0001178,2]
[327060255,1715766639673,-500.0,0.0001178,2]
[327060256,1715766639683,-500.0,0.0001178,2]
[327060257,1715766639693,-500.0,0.0001178,2]
[327060258,1715766639703,-500.0,0.0001178,2]
[327060259,1715766639712,-500.0,0.0001178,2]
[327060260,1715766639722,-242.26,0.0001178,2]
[327060261,1715766639732,-500.0,0.0001178,2]
[327060262,1715766639742,-500.0,0.0001178,2]
[327060263,1715766639751,-500.0,0.0001178,2]
[327060264,1715766639761,-454.99877055,0.0001178,2]
[327060265,1715766639775,-45.00122945,0.0001178,2]
[327060266,1715766639785,-500.0,0.0001178,2]
[327060267,1715766639795,-500.0,0.0001178,2]
[327060268,1715766639805,-500.0,0.0001178,2]
[327060269,1715766639815,-500.0,0.0001178,2]
[327060270,1715766639825,-500.0,0.0001178,2]
[327060271,1715766639836,-500.0,0.0001178,2]
[327060272,1715766639845,-500.0,0.0001178,2]
[327060273,1715766639854,-177.70555223,0.0001178,2]
[327060274,1715766639864,-500.0,0.0001178,2]
[327060275,1715766639875,-500.0,0.0001178,2]
[327060276,1715766639884,-500.0,0.0001178,2]
[327060277,1715766639894,-500.0,0.0001178,2]
[327060278,1715766639906,-227.43354453,0.0001178,2]
[327060280,1715766639919,-272.56645547,0.0001178,2]
[327060281,1715766639929,-500.0,0.0001178,2]
[327060282,1715766639938,-500.0,0.0001178,2]
[327060283,1715766639948,-384.24300113,0.0001178,2]
[327060284,1715766639958,-500.0,0.0001178,2]
[327060285,1715766639968,-500.0,0.0001178,2]
[327060286,1715766639979,-500.0,0.0001178,2]
[327060287,1715766639992,-500.0,0.0001178,2]
[327060288,1715766640003,-187.48380317,0.0001178,2]
[327060289,1715766640012,-500.0,0.0001178,2]
[327060290,1715766640022,-500.0,0.0001178,2]
[327060291,1715766640031,-500.0,0.0001178,2]
[327060292,1715766640040,-500.0,0.0001178,2]
[327060293,1715766640050,-180.88417588,0.0001178,2]
[327060294,1715766640059,-500.0,0.0001178,2]
[327060295,1715766640069,-500.0,0.0001178,2]
[327060296,1715766640078,-500.0,0.0001178,2]
[327060297,1715766640089,-629.92,0.0001178,2]
[327060298,1715766640099,-500.0,0.0001178,2]
[327060299,1715766640109,-500.0,0.0001178,2]
[327060300,1715766640121,-500.0,0.0001178,2]
[327060301,1715766640131,-2824.34,0.0001178,2]
[327060302,1715766640141,-500.0,0.0001178,2]
[327060303,1715766640150,-604.69956419,0.0001178,2]
[327060304,1715766640160,-2824.34,0.0001178,2]
[327060305,1715766640170,-500.0,0.0001178,2]
[327060306,1715766640179,-500.0,0.0001178,2]
[327060307,1715766640189,-500.0,0.0001178,2]
[327060308,1715766640199,-500.0,0.0001178,2]
[327060309,1715766640209,-500.0,0.0001178,2]
[327060310,1715766640218,-500.0,0.0001178,2]
[327060311,1715766640228,-500.0,0.0001178,2]
[327060312,1715766640238,-500.0,0.0001178,2]
[327060313,1715766640247,-500.0,0.0001178,2]
[327060314,1715766640257,-500.0,0.0001178,2]
[327060315,1715766640266,-500.0,0.0001178,2]
[327060316,1715766640279,-500.0,0.0001178,2]
[327060317,1715766640290,-500.0,0.0001178,2]
[327060318,1715766640300,-546.40392868,0.0001178,2]
[327060319,1715766640310,-500.0,0.0001178,2]
[327060320,1715766640320,-500.0,0.0001178,2]
[327060321,1715766640330,-500.0,0.0001178,2]
[327060322,1715766640340,-500.0,0.0001178,2]
[327060323,1715766640350,-500.0,0.0001178,2]
[327060324,1715766640360,-500.0,0.0001178,2]
[327060325,1715766640372,-500.0,0.0001178,2]
[327060326,1715766640382,-500.0,0.0001178,2]
[327060327,1715766640391,-500.0,0.0001178,2]
[327060328,1715766640403,-281.36,0.0001178,2]
[327060329,1715766640412,-500.0,0.0001178,2]